[Event "Titled Tuesday Blitz December 20 Early 2022"]
[White "Jensen, Morten Kingo"]
[Black "Ankudinova_Yelena"]
[WhiteFideId "1435108"]
[WhiteElo "1867"]
[BlackElo "2238"]
[Result "1-0"]
[Round "06"]
[TimeControl "180+2"]
[Date "2022.12.20"]
[WhiteClock "0:00:50"]
[BlackClock "0:00:07"]

1. e4 {[%clk 0:03:00]}  Nf6 {[%clk 0:02:58]} 2. e5 {[%clk 0:02:59]}  Nd5 {[%clk 0:02:58]} 3. d4 {[%clk 0:02:59]}  d6 {[%clk 0:02:57]} 4. Nf3 {[%clk 0:02:58]}  Bg4 {[%clk 0:02:57]} 5. Be2 {[%clk 0:02:57]}  e6 {[%clk 0:02:55]} 6. c4 {[%clk 0:02:53]}  Nb6 {[%clk 0:02:54]} 7. exd6 {[%clk 0:02:54]}  cxd6 {[%clk 0:02:53]} 8. h3 {[%clk 0:02:54]}  Bh5 {[%clk 0:02:50]} 9. Nc3 {[%clk 0:02:49]}  Nc6 {[%clk 0:02:49]} 10. d5 {[%clk 0:02:45]}  Bxf3 {[%clk 0:02:44]} 11. gxf3 {[%clk 0:02:36]}  Ne5 {[%clk 0:02:42]} 12. f4 {[%clk 0:02:33]}  Ng6 {[%clk 0:02:21]} 13. dxe6 {[%clk 0:02:32]}  fxe6 {[%clk 0:02:20]} 14. Be3 {[%clk 0:02:25]}  Be7 {[%clk 0:02:15]} 15. Bg4 {[%clk 0:02:14]}  Qd7 {[%clk 0:02:06]} 16. Qb3 {[%clk 0:02:12]}  h5 {[%clk 0:02:02]} 17. Be2 {[%clk 0:02:00]}  Qc6 {[%clk 0:01:58]} 18. Rg1 {[%clk 0:01:56]}  Nh4 {[%clk 0:01:36]} 19. c5 {[%clk 0:01:53]}  Nd7 {[%clk 0:01:16]} 20. cxd6 {[%clk 0:01:42]}  Bxd6 {[%clk 0:01:00]} 21. Qxe6+ {[%clk 0:01:33]}  Be7 {[%clk 0:00:51]} 22. Qxc6 {[%clk 0:01:30]}  bxc6 {[%clk 0:00:50]} 23. Kd1 {[%clk 0:01:28]}  Bf6 {[%clk 0:00:46]} 24. Kc2 {[%clk 0:01:26]}  Nf5 {[%clk 0:00:35]} 25. Bd3 {[%clk 0:01:19]}  Nd4+ {[%clk 0:00:32]} 26. Bxd4 {[%clk 0:01:17]}  Bxd4 {[%clk 0:00:32]} 27. Rae1+ {[%clk 0:01:17]}  Kf8 {[%clk 0:00:26]} 28. Ne4 {[%clk 0:01:10]}  Rb8 {[%clk 0:00:23]} 29. b3 {[%clk 0:01:08]}  Rh6 {[%clk 0:00:22]} 30. Ng5 {[%clk 0:01:04]}  Nc5 {[%clk 0:00:16]} 31. Re2 {[%clk 0:00:55]}  Rd6 {[%clk 0:00:11]} 32. Bc4 {[%clk 0:00:55]}  g6 {[%clk 0:00:09]} 33. f5 {[%clk 0:00:50]}  gxf5 {[%clk 0:00:07]} 34. Nh7# {[%clk 0:00:50]} 1-0


[Site "https://www.chess.com"]

[Event "Titled Tuesday Blitz December 20 Early 2022"]
[White "JohnWhite1952"]
[Black "Barbis, Athanasios"]
[BlackFideId "4215800"]
[WhiteElo "1978"]
[BlackElo "1953"]
[Result "1-0"]
[Round "06"]
[TimeControl "180+2"]
[Date "2022.12.20"]
[WhiteClock "0:00:57"]
[BlackClock "0:01:16"]

1. e4 {[%clk 0:02:59]}  e5 {[%clk 0:02:59]} 2. Nf3 {[%clk 0:02:59]}  Nc6 {[%clk 0:02:59]} 3. d4 {[%clk 0:02:59]}  exd4 {[%clk 0:02:56]} 4. Nxd4 {[%clk 0:02:59]}  Bc5 {[%clk 0:02:56]} 5. Be3 {[%clk 0:02:56]}  Qf6 {[%clk 0:02:53]} 6. c3 {[%clk 0:02:56]}  Nge7 {[%clk 0:02:35]} 7. Be2 {[%clk 0:02:52]}  d6 {[%clk 0:02:27]} 8. O-O {[%clk 0:02:49]}  O-O {[%clk 0:02:24]} 9. f4 {[%clk 0:02:43]}  Re8 {[%clk 0:02:10]} 10. Kh1 {[%clk 0:02:34]}  Bb6 {[%clk 0:02:04]} 11. Qd2 {[%clk 0:02:19]}  d5 {[%clk 0:01:52]} 12. e5 {[%clk 0:02:12]}  Qg6 {[%clk 0:01:51]} 13. Bd3 {[%clk 0:02:08]}  Nf5 {[%clk 0:01:45]} 14. Nxf5 {[%clk 0:01:47]}  Bxf5 {[%clk 0:01:46]} 15. Bxf5 {[%clk 0:01:44]}  Qxf5 {[%clk 0:01:47]} 16. Bxb6 {[%clk 0:01:41]}  axb6 {[%clk 0:01:48]} 17. Qxd5 {[%clk 0:01:37]}  Rxe5 {[%clk 0:01:40]} 18. Qf3 {[%clk 0:01:13]}  Rd5 {[%clk 0:01:38]} 19. Na3 {[%clk 0:01:09]}  Rad8 {[%clk 0:01:22]} 20. Nc4 {[%clk 0:01:05]}  b5 {[%clk 0:01:21]} 21. Ne3 {[%clk 0:01:02]}  Qc2 {[%clk 0:01:16]} 22. Nxc2 {[%clk 0:00:57]} 1-0


[Site "https://www.chess.com"]

[Event "Titled Tuesday Blitz December 20 Early 2022"]
[White "Jovanovic, Dobrica"]
[Black "Delemarre, Jop"]
[WhiteFideId "928674"]
[BlackFideId "1003704"]
[WhiteElo "2164"]
[BlackElo "2391"]
[Result "0-1"]
[Round "06"]
[TimeControl "180+2"]
[Date "2022.12.20"]
[WhiteClock "0:00:10"]
[BlackClock "0:00:16"]

1. e4 {[%clk 0:02:58]}  e6 {[%clk 0:02:58]} 2. d4 {[%clk 0:02:57]}  d5 {[%clk 0:02:58]} 3. exd5 {[%clk 0:02:57]}  exd5 {[%clk 0:02:58]} 4. Bd3 {[%clk 0:02:57]}  Nc6 {[%clk 0:02:57]} 5. Nf3 {[%clk 0:02:58]}  Bg4 {[%clk 0:02:52]} 6. c3 {[%clk 0:02:58]}  Bd6 {[%clk 0:02:52]} 7. O-O {[%clk 0:02:55]}  Nge7 {[%clk 0:02:52]} 8. Bg5 {[%clk 0:02:55]}  f6 {[%clk 0:02:52]} 9. Bh4 {[%clk 0:02:55]}  Qd7 {[%clk 0:02:52]} 10. Nbd2 {[%clk 0:02:52]}  O-O-O {[%clk 0:02:52]} 11. b4 {[%clk 0:02:52]}  Rde8 {[%clk 0:02:52]} 12. b5 {[%clk 0:02:53]}  Nd8 {[%clk 0:02:51]} 13. Qc2 {[%clk 0:02:51]}  h5 {[%clk 0:02:22]} 14. Bg3 {[%clk 0:02:49]}  Nf5 {[%clk 0:01:42]} 15. Bxd6 {[%clk 0:02:27]}  Nxd6 {[%clk 0:01:42]} 16. a4 {[%clk 0:02:24]}  Ne6 {[%clk 0:01:34]} 17. Bg6 {[%clk 0:01:44]}  Rd8 {[%clk 0:01:18]} 18. h3 {[%clk 0:01:41]}  Nf4 {[%clk 0:00:59]} 19. Rfe1 {[%clk 0:01:21]}  Bxh3 {[%clk 0:00:44]} 20. Nh2 {[%clk 0:00:27]}  Nxg2 {[%clk 0:00:31]} 21. Ndf3 {[%clk 0:00:10]}  Nxe1 {[%clk 0:00:28]} 22. Rxe1 {[%clk 0:00:11]}  Bf5 {[%clk 0:00:28]} 23. Bxf5 {[%clk 0:00:10]}  Qxf5 {[%clk 0:00:28]} 24. Qxf5+ {[%clk 0:00:10]}  Nxf5 {[%clk 0:00:29]} 25. Nd2 {[%clk 0:00:08]}  g5 {[%clk 0:00:28]} 26. Nhf3 {[%clk 0:00:08]}  g4 {[%clk 0:00:28]} 27. Nh2 {[%clk 0:00:08]}  Rhe8 {[%clk 0:00:27]} 28. Rf1 {[%clk 0:00:08]}  Re2 {[%clk 0:00:26]} 29. Nb3 {[%clk 0:00:08]}  b6 {[%clk 0:00:26]} 30. a5 {[%clk 0:00:07]}  Rde8 {[%clk 0:00:26]} 31. axb6 {[%clk 0:00:08]}  axb6 {[%clk 0:00:26]} 32. Ra1 {[%clk 0:00:08]}  Re1+ {[%clk 0:00:26]} 33. Rxe1 {[%clk 0:00:06]}  Rxe1+ {[%clk 0:00:27]} 34. Kg2 {[%clk 0:00:07]}  Kd7 {[%clk 0:00:24]} 35. Nf1 {[%clk 0:00:08]}  h4 {[%clk 0:00:23]} 36. Nbd2 {[%clk 0:00:09]}  h3+ {[%clk 0:00:22]} 37. Kg1 {[%clk 0:00:10]}  Nh4 {[%clk 0:00:17]} 38. Kh2 {[%clk 0:00:11]}  Nf3+ {[%clk 0:00:17]} 39. Nxf3 {[%clk 0:00:10]}  Rxf1 {[%clk 0:00:17]} 40. Nh4 {[%clk 0:00:08]}  Rxf2+ {[%clk 0:00:17]} 41. Kg3 {[%clk 0:00:09]}  Rc2 {[%clk 0:00:16]} 42. Kxg4 {[%clk 0:00:08]}  h2 {[%clk 0:00:17]} 43. Nf3 {[%clk 0:00:09]}  h1=Q {[%clk 0:00:16]} 44. Ne5+ {[%clk 0:00:10]}  fxe5 {[%clk 0:00:16]} 0-1


[Site "https://www.chess.com"]

[Event "Titled Tuesday Blitz December 20 Early 2022"]
[White "Karjakin, Sergey"]
[Black "Patricks, Anastasia"]
[WhiteFideId "14109603"]
[BlackFideId "7101929"]
[WhiteElo "2747"]
[BlackElo "1778"]
[Result "1-0"]
[Round "06"]
[TimeControl "180+2"]
[Date "2022.12.20"]
[WhiteClock "0:00:58"]
[BlackClock "0:00:33"]

1. d4 {[%clk 0:03:00]}  g6 {[%clk 0:02:59]} 2. c4 {[%clk 0:03:00]}  Bg7 {[%clk 0:03:00]} 3. Nc3 {[%clk 0:03:01]}  d6 {[%clk 0:03:00]} 4. e4 {[%clk 0:03:01]}  Nd7 {[%clk 0:03:01]} 5. Nf3 {[%clk 0:03:01]}  e5 {[%clk 0:03:02]} 6. Be3 {[%clk 0:03:00]}  Ngf6 {[%clk 0:03:02]} 7. Be2 {[%clk 0:02:55]}  O-O {[%clk 0:03:02]} 8. d5 {[%clk 0:02:50]}  a5 {[%clk 0:03:02]} 9. Nd2 {[%clk 0:02:49]}  Nc5 {[%clk 0:03:02]} 10. O-O {[%clk 0:02:48]}  Bd7 {[%clk 0:02:56]} 11. b3 {[%clk 0:02:47]}  Ne8 {[%clk 0:02:54]} 12. a3 {[%clk 0:02:43]}  f5 {[%clk 0:02:54]} 13. f3 {[%clk 0:02:43]}  Qh4 {[%clk 0:02:53]} 14. Bf2 {[%clk 0:02:39]}  Qd8 {[%clk 0:02:41]} 15. b4 {[%clk 0:02:37]}  axb4 {[%clk 0:02:29]} 16. axb4 {[%clk 0:02:36]}  Na6 {[%clk 0:02:29]} 17. Qb3 {[%clk 0:02:32]}  Bh6 {[%clk 0:02:29]} 18. Rfd1 {[%clk 0:02:29]}  Kh8 {[%clk 0:02:28]} 19. Rab1 {[%clk 0:02:21]}  Ng7 {[%clk 0:02:24]} 20. c5 {[%clk 0:02:20]}  fxe4 {[%clk 0:02:17]} 21. Ndxe4 {[%clk 0:02:17]}  Nf5 {[%clk 0:02:18]} 22. c6 {[%clk 0:02:01]}  bxc6 {[%clk 0:01:49]} 23. dxc6 {[%clk 0:02:00]}  Be8 {[%clk 0:01:43]} 24. b5 {[%clk 0:02:00]}  Nb8 {[%clk 0:01:28]} 25. Nd5 {[%clk 0:01:59]}  Nd4 {[%clk 0:01:23]} 26. Rxd4 {[%clk 0:01:57]}  exd4 {[%clk 0:01:24]} 27. Bxd4+ {[%clk 0:01:57]}  Bg7 {[%clk 0:01:21]} 28. Bxg7+ {[%clk 0:01:55]}  Kxg7 {[%clk 0:01:22]} 29. Qc3+ {[%clk 0:01:55]}  Kh6 {[%clk 0:01:21]} 30. Nef6 {[%clk 0:01:51]}  Ra4 {[%clk 0:01:03]} 31. Bd1 {[%clk 0:01:29]}  Rf4 {[%clk 0:00:41]} 32. Nxf4 {[%clk 0:01:20]}  Rxf6 {[%clk 0:00:41]} 33. Qe3 {[%clk 0:01:19]}  g5 {[%clk 0:00:39]} 34. Ne6 {[%clk 0:01:18]}  Rxe6 {[%clk 0:00:37]} 35. Qxe6+ {[%clk 0:01:19]}  Bg6 {[%clk 0:00:38]} 36. Bc2 {[%clk 0:01:18]}  Qh8 {[%clk 0:00:38]} 37. Bxg6 {[%clk 0:01:13]}  Qd4+ {[%clk 0:00:36]} 38. Kh1 {[%clk 0:01:14]}  hxg6 {[%clk 0:00:37]} 39. Re1 {[%clk 0:01:14]}  Qc3 {[%clk 0:00:33]} 40. Qh3+ {[%clk 0:01:12]}  Kg7 {[%clk 0:00:33]} 41. Qe6 {[%clk 0:00:59]}  Kh6 {[%clk 0:00:33]} 42. h4 {[%clk 0:00:58]}  gxh4 {[%clk 0:00:33]} 43. Qe3+ {[%clk 0:00:58]}  Qxe3 {[%clk 0:00:33]} 44. Rxe3 {[%clk 0:00:58]} 1-0


[Site "https://www.chess.com"]

[Event "Titled Tuesday Blitz December 20 Early 2022"]
[White "Karttunen, Mika"]
[Black "Imperial, Genghis"]
[WhiteFideId "502081"]
[BlackFideId "5230403"]
[WhiteElo "2490"]
[BlackElo "1812"]
[Result "0-1"]
[Round "06"]
[TimeControl "180+2"]
[Date "2022.12.20"]
[WhiteClock "0:00:16"]
[BlackClock "0:01:14"]

1. e4 {[%clk 0:03:00]}  c6 {[%clk 0:02:51]} 2. d4 {[%clk 0:03:00]}  d5 {[%clk 0:02:52]} 3. e5 {[%clk 0:03:00]}  Bf5 {[%clk 0:02:52]} 4. h4 {[%clk 0:03:00]}  h5 {[%clk 0:02:49]} 5. Bd3 {[%clk 0:02:58]}  Qd7 {[%clk 0:02:50]} 6. Ne2 {[%clk 0:02:48]}  c5 {[%clk 0:02:42]} 7. Ng3 {[%clk 0:02:39]}  Bxd3 {[%clk 0:02:39]} 8. Qxd3 {[%clk 0:02:39]}  cxd4 {[%clk 0:02:38]} 9. Nd2 {[%clk 0:02:29]}  Nc6 {[%clk 0:02:38]} 10. Nf3 {[%clk 0:02:29]}  e6 {[%clk 0:02:35]} 11. O-O {[%clk 0:02:28]}  Rc8 {[%clk 0:02:32]} 12. Bd2 {[%clk 0:02:18]}  Nge7 {[%clk 0:02:28]} 13. b4 {[%clk 0:02:05]}  Ng6 {[%clk 0:02:28]} 14. Rfe1 {[%clk 0:01:49]}  Bxb4 {[%clk 0:02:24]} 15. Rab1 {[%clk 0:01:37]}  Bxd2 {[%clk 0:02:16]} 16. Qxd2 {[%clk 0:01:37]}  Qe7 {[%clk 0:02:12]} 17. Nxd4 {[%clk 0:01:24]}  Qxh4 {[%clk 0:02:05]} 18. Nb5 {[%clk 0:01:19]}  O-O {[%clk 0:02:04]} 19. Nd6 {[%clk 0:01:18]}  Rc7 {[%clk 0:01:58]} 20. c4 {[%clk 0:01:16]}  Ncxe5 {[%clk 0:01:54]} 21. cxd5 {[%clk 0:01:11]}  Ng4 {[%clk 0:01:54]} 22. Nde4 {[%clk 0:00:38]}  Qh2+ {[%clk 0:01:27]} 23. Kf1 {[%clk 0:00:38]}  Nh4 {[%clk 0:01:27]} 24. f3 {[%clk 0:00:27]}  exd5 {[%clk 0:01:28]} 25. fxg4 {[%clk 0:00:23]}  dxe4 {[%clk 0:01:23]} 26. Nxe4 {[%clk 0:00:23]}  Qh1+ {[%clk 0:01:21]} 27. Ke2 {[%clk 0:00:17]}  Qxg2+ {[%clk 0:01:22]} 28. Kd1 {[%clk 0:00:16]}  Qxg4+ {[%clk 0:01:19]} 29. Qe2 {[%clk 0:00:16]}  Rd8+ {[%clk 0:01:14]} 30. Nd2 {[%clk 0:00:16]}  Nf3 {[%clk 0:01:14]} 0-1


[Site "https://www.chess.com"]

[Event "Titled Tuesday Blitz December 20 Early 2022"]
[White "Kildepiotr"]
[Black "Forgacs, Gyula"]
[BlackFideId "701203"]
[WhiteElo "2682"]
[BlackElo "2305"]
[Result "1-0"]
[Round "06"]
[TimeControl "180+2"]
[Date "2022.12.20"]
[WhiteClock "0:01:01"]
[BlackClock "0:00:11"]

1. Nf3 {[%clk 0:03:00]}  Nf6 {[%clk 0:03:00]} 2. g3 {[%clk 0:03:00]}  g6 {[%clk 0:03:00]} 3. Bg2 {[%clk 0:03:01]}  Bg7 {[%clk 0:03:01]} 4. O-O {[%clk 0:03:01]}  O-O {[%clk 0:03:02]} 5. d4 {[%clk 0:03:02]}  d6 {[%clk 0:03:03]} 6. Nbd2 {[%clk 0:03:02]}  Nc6 {[%clk 0:03:01]} 7. e4 {[%clk 0:03:02]}  e5 {[%clk 0:03:02]} 8. dxe5 {[%clk 0:03:03]}  dxe5 {[%clk 0:03:02]} 9. c3 {[%clk 0:03:03]}  Qe7 {[%clk 0:03:01]} 10. Qe2 {[%clk 0:03:03]}  Rd8 {[%clk 0:03:01]} 11. b4 {[%clk 0:03:03]}  a6 {[%clk 0:02:58]} 12. a4 {[%clk 0:03:03]}  Ne8 {[%clk 0:02:47]} 13. Ba3 {[%clk 0:03:01]}  Qd7 {[%clk 0:02:40]} 14. Nb3 {[%clk 0:02:42]}  Qd3 {[%clk 0:02:37]} 15. Qxd3 {[%clk 0:02:42]}  Rxd3 {[%clk 0:02:38]} 16. Rac1 {[%clk 0:02:38]}  Bg4 {[%clk 0:02:22]} 17. Ne1 {[%clk 0:02:23]}  Rdd8 {[%clk 0:02:21]} 18. f3 {[%clk 0:02:22]}  Be6 {[%clk 0:02:11]} 19. Nc5 {[%clk 0:02:22]}  Bc4 {[%clk 0:02:10]} 20. Nxb7 {[%clk 0:02:19]}  Rdb8 {[%clk 0:02:10]} 21. Nc5 {[%clk 0:02:18]}  Bxf1 {[%clk 0:02:09]} 22. Bxf1 {[%clk 0:02:19]}  a5 {[%clk 0:01:54]} 23. b5 {[%clk 0:02:17]}  Na7 {[%clk 0:01:45]} 24. Nb3 {[%clk 0:02:06]}  c6 {[%clk 0:01:38]} 25. c4 {[%clk 0:02:03]}  cxb5 {[%clk 0:01:28]} 26. axb5 {[%clk 0:02:03]}  a4 {[%clk 0:01:24]} 27. Nc5 {[%clk 0:02:02]}  Bf8 {[%clk 0:01:24]} 28. Ra1 {[%clk 0:01:58]}  Nc8 {[%clk 0:01:21]} 29. Nd7 {[%clk 0:01:51]}  Bxa3 {[%clk 0:01:16]} 30. Rxa3 {[%clk 0:01:52]}  Rb7 {[%clk 0:01:14]} 31. Nxe5 {[%clk 0:01:52]}  Ncd6 {[%clk 0:01:03]} 32. Nc2 {[%clk 0:01:51]}  f5 {[%clk 0:01:02]} 33. Nd4 {[%clk 0:01:45]}  fxe4 {[%clk 0:00:52]} 34. c5 {[%clk 0:01:44]}  Nf5 {[%clk 0:00:47]} 35. Bc4+ {[%clk 0:01:42]}  Kh8 {[%clk 0:00:44]} 36. Nxf5 {[%clk 0:01:33]}  gxf5 {[%clk 0:00:45]} 37. Bd5 {[%clk 0:01:29]}  Rxb5 {[%clk 0:00:39]} 38. Bxa8 {[%clk 0:01:29]}  Rxc5 {[%clk 0:00:39]} 39. f4 {[%clk 0:01:24]}  Rc1+ {[%clk 0:00:20]} 40. Kg2 {[%clk 0:01:24]}  Rc2+ {[%clk 0:00:21]} 41. Kh3 {[%clk 0:01:25]}  Nf6 {[%clk 0:00:21]} 42. Rxa4 {[%clk 0:01:21]}  e3 {[%clk 0:00:21]} 43. Bf3 {[%clk 0:01:20]}  e2 {[%clk 0:00:19]} 44. Ra1 {[%clk 0:01:20]}  Ne4 {[%clk 0:00:17]} 45. Bxe4 {[%clk 0:01:19]}  fxe4 {[%clk 0:00:18]} 46. Re1 {[%clk 0:01:18]}  Kg7 {[%clk 0:00:18]} 47. Kg2 {[%clk 0:01:16]}  Kf6 {[%clk 0:00:17]} 48. Kf2 {[%clk 0:01:16]}  Kf5 {[%clk 0:00:16]} 49. Rxe2 {[%clk 0:01:16]}  Rc1 {[%clk 0:00:17]} 50. Kg2 {[%clk 0:01:13]}  h5 {[%clk 0:00:16]} 51. Nf7 {[%clk 0:01:09]}  Rc3 {[%clk 0:00:15]} 52. Ng5 {[%clk 0:01:08]}  e3 {[%clk 0:00:15]} 53. Kf3 {[%clk 0:01:09]}  h4 {[%clk 0:00:14]} 54. g4+ {[%clk 0:01:09]}  Kg6 {[%clk 0:00:14]} 55. Rxe3 {[%clk 0:01:07]}  Rc2 {[%clk 0:00:14]} 56. h3 {[%clk 0:01:07]}  Rh2 {[%clk 0:00:13]} 57. Ke4 {[%clk 0:01:07]}  Rc2 {[%clk 0:00:13]} 58. Nf3 {[%clk 0:01:06]}  Rc7 {[%clk 0:00:13]} 59. Ne5+ {[%clk 0:01:06]}  Kf6 {[%clk 0:00:13]} 60. Ra3 {[%clk 0:01:06]}  Rc8 {[%clk 0:00:13]} 61. Ra6+ {[%clk 0:01:06]}  Kg7 {[%clk 0:00:13]} 62. Kf5 {[%clk 0:01:04]}  Rb8 {[%clk 0:00:14]} 63. Ra7+ {[%clk 0:01:04]}  Kg8 {[%clk 0:00:13]} 64. g5 {[%clk 0:01:03]}  Rf8+ {[%clk 0:00:13]} 65. Kg4 {[%clk 0:01:01]}  Rb8 {[%clk 0:00:14]} 66. g6 {[%clk 0:01:01]}  Rb6 {[%clk 0:00:12]} 67. Kg5 {[%clk 0:01:01]}  Rb8 {[%clk 0:00:11]} 68. Ng4 {[%clk 0:01:01]}  Kh8 {[%clk 0:00:11]} 69. Rh7+ {[%clk 0:01:00]}  Kg8 {[%clk 0:00:11]} 70. Nf6+ {[%clk 0:01:00]}  Kf8 {[%clk 0:00:11]} 71. Rf7# {[%clk 0:01:01]} 1-0


[Site "https://www.chess.com"]

[Event "Titled Tuesday Blitz December 20 Early 2022"]
[White "Kopylov_Alex"]
[Black "Bilandani, Vansh"]
[BlackFideId "8511292"]
[WhiteElo "2790"]
[BlackElo "2488"]
[Result "1/2-1/2"]
[Round "06"]
[TimeControl "180+2"]
[Date "2022.12.20"]
[WhiteClock "0:00:57"]
[BlackClock "0:00:07"]

1. e4 {[%clk 0:03:00]}  c6 {[%clk 0:02:59]} 2. d3 {[%clk 0:02:58]}  d5 {[%clk 0:02:55]} 3. Nd2 {[%clk 0:02:59]}  e5 {[%clk 0:02:55]} 4. g3 {[%clk 0:02:59]}  Bd6 {[%clk 0:02:54]} 5. Bg2 {[%clk 0:03:00]}  Nf6 {[%clk 0:02:54]} 6. Ngf3 {[%clk 0:03:00]}  Bg4 {[%clk 0:02:53]} 7. h3 {[%clk 0:03:00]}  Bh5 {[%clk 0:02:50]} 8. O-O {[%clk 0:03:00]}  O-O {[%clk 0:02:49]} 9. Re1 {[%clk 0:02:59]}  Nbd7 {[%clk 0:02:28]} 10. exd5 {[%clk 0:02:56]}  cxd5 {[%clk 0:02:22]} 11. c4 {[%clk 0:02:56]}  d4 {[%clk 0:02:15]} 12. Qc2 {[%clk 0:02:45]}  a5 {[%clk 0:02:09]} 13. b3 {[%clk 0:02:45]}  Re8 {[%clk 0:02:01]} 14. Ng5 {[%clk 0:02:32]}  Qc7 {[%clk 0:01:53]} 15. a3 {[%clk 0:02:31]}  Nc5 {[%clk 0:01:43]} 16. Rb1 {[%clk 0:02:27]}  Bg6 {[%clk 0:01:33]} 17. Nge4 {[%clk 0:02:25]}  Nfxe4 {[%clk 0:01:24]} 18. Nxe4 {[%clk 0:02:26]}  Nxe4 {[%clk 0:01:22]} 19. Bxe4 {[%clk 0:02:22]}  Bxe4 {[%clk 0:01:13]} 20. Rxe4 {[%clk 0:02:23]}  f5 {[%clk 0:01:12]} 21. Re1 {[%clk 0:02:24]}  Qc6 {[%clk 0:01:06]} 22. b4 {[%clk 0:02:17]}  axb4 {[%clk 0:01:05]} 23. axb4 {[%clk 0:02:18]}  e4 {[%clk 0:00:57]} 24. b5 {[%clk 0:02:17]}  exd3 {[%clk 0:00:47]} 25. Qd1 {[%clk 0:01:40]}  Rxe1+ {[%clk 0:00:33]} 26. Qxe1 {[%clk 0:01:39]}  Re8 {[%clk 0:00:25]} 27. Qd1 {[%clk 0:01:34]}  Qe4 {[%clk 0:00:24]} 28. Bd2 {[%clk 0:01:32]}  Qe2 {[%clk 0:00:18]} 29. Qb3 {[%clk 0:01:24]}  Bxg3 {[%clk 0:00:14]} 30. c5+ {[%clk 0:01:20]}  Kh8 {[%clk 0:00:12]} 31. fxg3 {[%clk 0:01:19]}  Qxd2 {[%clk 0:00:12]} 32. c6 {[%clk 0:01:04]}  bxc6 {[%clk 0:00:11]} 33. bxc6 {[%clk 0:01:04]}  Qe3+ {[%clk 0:00:12]} 34. Kg2 {[%clk 0:01:04]}  Qe4+ {[%clk 0:00:11]} 35. Kg1 {[%clk 0:01:05]}  Qxc6 {[%clk 0:00:11]} 36. Qxd3 {[%clk 0:01:04]}  Qe4 {[%clk 0:00:08]} 37. Rd1 {[%clk 0:01:03]}  Qxd3 {[%clk 0:00:08]} 38. Rxd3 {[%clk 0:01:03]}  Re4 {[%clk 0:00:07]} 39. Rb3 {[%clk 0:01:00]}  g6 {[%clk 0:00:07]} 40. Rb7 {[%clk 0:01:00]}  Re8 {[%clk 0:00:04]} 41. Rd7 {[%clk 0:01:00]}  Re4 {[%clk 0:00:04]} 42. Kf2 {[%clk 0:01:01]}  Kg8 {[%clk 0:00:05]} 43. Kf3 {[%clk 0:01:01]}  Kf8 {[%clk 0:00:05]} 44. Rxh7 {[%clk 0:01:01]}  Re7 {[%clk 0:00:05]} 45. Rh8+ {[%clk 0:01:01]}  Kf7 {[%clk 0:00:05]} 46. Rd8 {[%clk 0:01:02]}  Re4 {[%clk 0:00:06]} 47. g4 {[%clk 0:01:02]}  Kf6 {[%clk 0:00:06]} 48. Rd5 {[%clk 0:01:01]}  Re3+ {[%clk 0:00:05]} 49. Kg2 {[%clk 0:01:01]}  Rd3 {[%clk 0:00:06]} 50. gxf5 {[%clk 0:00:59]}  gxf5 {[%clk 0:00:07]} 51. h4 {[%clk 0:01:00]}  Kg6 {[%clk 0:00:07]} 52. Kf2 {[%clk 0:01:00]}  Rd2+ {[%clk 0:00:06]} 53. Kf3 {[%clk 0:01:00]}  Rd3+ {[%clk 0:00:07]} 54. Kf4 {[%clk 0:01:00]}  Rd1 {[%clk 0:00:06]} 55. Rd6+ {[%clk 0:00:57]}  Kh5 {[%clk 0:00:06]} 56. Kxf5 {[%clk 0:00:57]}  Kxh4 {[%clk 0:00:06]} 57. Ke4 {[%clk 0:00:57]}  Kg3 {[%clk 0:00:06]} 58. Rxd4 {[%clk 0:00:56]}  Rxd4+ {[%clk 0:00:07]} 59. Kxd4 {[%clk 0:00:57]} 1/2-1/2


[Site "https://www.chess.com"]

[Event "Titled Tuesday Blitz December 20 Early 2022"]
[White "Kukku, Ramesh"]
[Black "Arnaldofdelavaramulet"]
[WhiteFideId "25695606"]
[WhiteElo "1575"]
[BlackElo "2648"]
[Result "0-1"]
[Round "06"]
[TimeControl "180+2"]
[Date "2022.12.20"]
[WhiteClock "0:00:04"]
[BlackClock "0:00:49"]

1. Nc3 {[%clk 0:03:00]}  c5 {[%clk 0:03:00]} 2. g4 {[%clk 0:03:00]}  Nc6 {[%clk 0:02:59]} 3. Bg2 {[%clk 0:02:59]}  g6 {[%clk 0:02:59]} 4. h4 {[%clk 0:02:58]}  h5 {[%clk 0:02:58]} 5. gxh5 {[%clk 0:02:57]}  Rxh5 {[%clk 0:02:58]} 6. Bf3 {[%clk 0:02:52]}  Rh8 {[%clk 0:02:56]} 7. h5 {[%clk 0:02:53]}  gxh5 {[%clk 0:02:52]} 8. Bxh5 {[%clk 0:02:48]}  Bg7 {[%clk 0:02:52]} 9. e3 {[%clk 0:02:40]}  d5 {[%clk 0:02:41]} 10. Qf3 {[%clk 0:02:20]}  Nf6 {[%clk 0:02:36]} 11. Nge2 {[%clk 0:01:54]}  Rxh5 {[%clk 0:02:35]} 12. Rxh5 {[%clk 0:01:44]}  Bg4 {[%clk 0:02:35]} 13. Qg3 {[%clk 0:01:26]}  Bxe2 {[%clk 0:02:30]} 14. Rh1 {[%clk 0:00:49]}  Bg4 {[%clk 0:02:19]} 15. f3 {[%clk 0:00:46]}  d4 {[%clk 0:02:18]} 16. Ne2 {[%clk 0:00:39]}  dxe3 {[%clk 0:02:14]} 17. fxg4 {[%clk 0:00:38]}  Nb4 {[%clk 0:02:04]} 18. g5 {[%clk 0:00:28]}  Ne4 {[%clk 0:01:57]} 19. Qf4 {[%clk 0:00:26]}  exd2+ {[%clk 0:01:47]} 20. Bxd2 {[%clk 0:00:26]}  Nxc2+ {[%clk 0:01:48]} 21. Kd1 {[%clk 0:00:24]}  Qd3 {[%clk 0:01:47]} 22. Nc1 {[%clk 0:00:14]}  Qc4 {[%clk 0:01:27]} 23. Rb1 {[%clk 0:00:10]}  Rd8 {[%clk 0:01:24]} 24. Nb3 {[%clk 0:00:10]}  Nc3+ {[%clk 0:01:18]} 25. bxc3 {[%clk 0:00:09]}  Qxf4 {[%clk 0:01:18]} 26. Kxc2 {[%clk 0:00:08]}  Qe4+ {[%clk 0:01:16]} 27. Kb2 {[%clk 0:00:08]}  c4 {[%clk 0:01:15]} 28. Nd4 {[%clk 0:00:07]}  Rxd4 {[%clk 0:01:05]} 29. cxd4 {[%clk 0:00:07]}  Bxd4+ {[%clk 0:01:03]} 30. Bc3 {[%clk 0:00:06]}  Qe2+ {[%clk 0:01:03]} 31. Ka3 {[%clk 0:00:04]}  Bxc3 {[%clk 0:00:52]} 32. Rh8+ {[%clk 0:00:03]}  Bxh8 {[%clk 0:00:51]} 33. Rxb7 {[%clk 0:00:04]}  Qf3+ {[%clk 0:00:49]} 0-1


[Site "https://www.chess.com"]